[Event "Titled Tuesday Blitz May 10 Early 2022"]
[White "Muradov, Soltan"]
[Black "Bilych, Olexiy"]
[WhiteFideId "14002108"]
[BlackFideId "14156504"]
[WhiteElo "1854"]
[BlackElo "2176"]
[Result "0-1"]
[Round "02"]
[TimeControl "180+1"]
[Date "2022.05.11"]
[WhiteClock "0:00:07"]
[BlackClock "0:00:42"]

1. d4 {[%clk 0:02:55]}  Nf6 {[%clk 0:02:59]} 2. Nf3 {[%clk 0:02:54]}  d5 {[%clk 0:02:59]} 3. c4 {[%clk 0:02:34]}  e6 {[%clk 0:02:55]} 4. Nc3 {[%clk 0:02:32]}  Bb4 {[%clk 0:02:55]} 5. Qb3 {[%clk 0:02:32]}  c5 {[%clk 0:02:51]} 6. e3 {[%clk 0:02:31]}  O-O {[%clk 0:02:49]} 7. a3 {[%clk 0:02:29]}  Bxc3+ {[%clk 0:02:46]} 8. Qxc3 {[%clk 0:02:29]}  cxd4 {[%clk 0:02:44]} 9. Nxd4 {[%clk 0:02:24]}  Nc6 {[%clk 0:02:28]} 10. Nxc6 {[%clk 0:02:17]}  bxc6 {[%clk 0:02:29]} 11. Be2 {[%clk 0:01:49]}  a5 {[%clk 0:02:25]} 12. b3 {[%clk 0:01:44]}  Ne4 {[%clk 0:02:16]} 13. Qc2 {[%clk 0:01:44]}  Qf6 {[%clk 0:02:15]} 14. O-O {[%clk 0:01:29]}  Qxa1 {[%clk 0:02:00]} 15. Bb2 {[%clk 0:01:28]}  Qxf1+ {[%clk 0:01:48]} 16. Bxf1 {[%clk 0:01:28]}  Ba6 {[%clk 0:01:41]} 17. f3 {[%clk 0:01:11]}  Nf6 {[%clk 0:01:20]} 18. g4 {[%clk 0:00:59]}  a4 {[%clk 0:01:05]} 19. Bxf6 {[%clk 0:00:55]}  gxf6 {[%clk 0:01:01]} 20. Qb2 {[%clk 0:00:55]}  axb3 {[%clk 0:00:58]} 21. cxd5 {[%clk 0:00:42]}  Bxf1 {[%clk 0:00:52]} 22. Kxf1 {[%clk 0:00:43]}  Rab8 {[%clk 0:00:45]} 23. h4 {[%clk 0:00:19]}  cxd5 {[%clk 0:00:44]} 24. h5 {[%clk 0:00:19]}  h6 {[%clk 0:00:44]} 25. Kg2 {[%clk 0:00:11]}  Rfc8 {[%clk 0:00:43]} 26. Kg3 {[%clk 0:00:11]}  Rc2 {[%clk 0:00:42]} 27. Qxf6 {[%clk 0:00:12]}  b2 {[%clk 0:00:43]} 28. Qxh6 {[%clk 0:00:09]}  b1=Q {[%clk 0:00:43]} 29. Qg5+ {[%clk 0:00:10]}  Kf8 {[%clk 0:00:44]} 30. Qh6+ {[%clk 0:00:10]}  Ke8 {[%clk 0:00:41]} 31. Qh8+ {[%clk 0:00:07]}  Kd7 {[%clk 0:00:42]} 0-1


[Site "https://www.chess.com"]

[Event "Titled Tuesday Blitz May 10 Early 2022"]
[White "Nagy, Gabor"]
[Black "Bachmann, Axel"]
[WhiteFideId "737119"]
[BlackFideId "3700488"]
[WhiteElo "2569"]
[BlackElo "2587"]
[Result "1-0"]
[Round "02"]
[TimeControl "180+1"]
[Date "2022.05.11"]
[WhiteClock "0:00:17"]
[BlackClock "0:00:02"]

1. d4 {[%clk 0:03:00]}  Nf6 {[%clk 0:02:54]} 2. Nf3 {[%clk 0:03:01]}  g6 {[%clk 0:02:54]} 3. Nbd2 {[%clk 0:02:59]}  Bg7 {[%clk 0:02:52]} 4. e4 {[%clk 0:03:00]}  d6 {[%clk 0:02:52]} 5. Bb5+ {[%clk 0:03:00]}  c6 {[%clk 0:02:50]} 6. Bd3 {[%clk 0:03:00]}  O-O {[%clk 0:02:50]} 7. O-O {[%clk 0:03:00]}  Qc7 {[%clk 0:02:49]} 8. a4 {[%clk 0:02:56]}  b6 {[%clk 0:02:45]} 9. e5 {[%clk 0:02:53]}  dxe5 {[%clk 0:02:39]} 10. Nxe5 {[%clk 0:02:53]}  Nbd7 {[%clk 0:02:37]} 11. Ndc4 {[%clk 0:02:49]}  Nd5 {[%clk 0:02:34]} 12. Nxd7 {[%clk 0:02:42]}  Bxd7 {[%clk 0:02:29]} 13. c3 {[%clk 0:02:37]}  Rad8 {[%clk 0:02:16]} 14. Re1 {[%clk 0:02:34]}  Bc8 {[%clk 0:02:15]} 15. Qf3 {[%clk 0:02:33]}  c5 {[%clk 0:02:03]} 16. dxc5 {[%clk 0:02:32]}  Qxc5 {[%clk 0:02:01]} 17. Bf1 {[%clk 0:02:15]}  Ba6 {[%clk 0:01:54]} 18. Ne3 {[%clk 0:02:03]}  Bb7 {[%clk 0:01:36]} 19. Qg3 {[%clk 0:01:57]}  Nf6 {[%clk 0:01:26]} 20. a5 {[%clk 0:01:48]}  Ne4 {[%clk 0:01:25]} 21. Qh4 {[%clk 0:01:40]}  bxa5 {[%clk 0:01:24]} 22. Ng4 {[%clk 0:01:34]}  h5 {[%clk 0:01:13]} 23. Nh6+ {[%clk 0:01:31]}  Kh7 {[%clk 0:01:04]} 24. Ng4 {[%clk 0:01:13]}  f5 {[%clk 0:00:56]} 25. Be3 {[%clk 0:01:09]}  Qc7 {[%clk 0:00:51]} 26. f3 {[%clk 0:01:07]}  fxg4 {[%clk 0:00:42]} 27. fxe4 {[%clk 0:01:06]}  Bxe4 {[%clk 0:00:24]} 28. Bg5 {[%clk 0:01:04]}  Qb6+ {[%clk 0:00:25]} 29. Kh1 {[%clk 0:01:04]}  Qxb2 {[%clk 0:00:22]} 30. Qg3 {[%clk 0:00:55]}  Rd2 {[%clk 0:00:19]} 31. Bxd2 {[%clk 0:00:54]}  Bc6 {[%clk 0:00:02]} 32. Rad1 {[%clk 0:00:48]}  Rf7 {[%clk 0:00:03]} 33. Bc1 {[%clk 0:00:48]}  Qxc3 {[%clk 0:00:02]} 34. Qxc3 {[%clk 0:00:47]}  Bxc3 {[%clk 0:00:03]} 35. Re6 {[%clk 0:00:47]}  Ba4 {[%clk 0:00:04]} 36. Rde1 {[%clk 0:00:42]}  Bxe1 {[%clk 0:00:03]} 37. Rxe1 {[%clk 0:00:43]}  Bb3 {[%clk 0:00:03]} 38. Kg1 {[%clk 0:00:41]}  a4 {[%clk 0:00:03]} 39. Bb2 {[%clk 0:00:41]}  e6 {[%clk 0:00:04]} 40. Rc1 {[%clk 0:00:39]}  Rd7 {[%clk 0:00:04]} 41. Bb5 {[%clk 0:00:39]}  Rd2 {[%clk 0:00:03]} 42. Rc7+ {[%clk 0:00:38]}  Kg8 {[%clk 0:00:02]} 43. Ba3 {[%clk 0:00:36]}  Rd1+ {[%clk 0:00:02]} 44. Kf2 {[%clk 0:00:36]}  Ra1 {[%clk 0:00:03]} 45. Bd6 {[%clk 0:00:34]}  Ra2+ {[%clk 0:00:02]} 46. Ke3 {[%clk 0:00:32]}  a3 {[%clk 0:00:03]} 47. Be8 {[%clk 0:00:32]}  Rb2 {[%clk 0:00:01]} 48. Bf7+ {[%clk 0:00:32]}  Kh7 {[%clk 0:00:02]} 49. Bxe6+ {[%clk 0:00:32]}  Kh6 {[%clk 0:00:02]} 50. Bf8+ {[%clk 0:00:31]}  Kg5 {[%clk 0:00:03]} 51. Be7+ {[%clk 0:00:29]}  Kh6 {[%clk 0:00:04]} 52. Kf4 {[%clk 0:00:17]}  g5+ {[%clk 0:00:02]} 53. Bxg5+ {[%clk 0:00:17]}  Kg6 {[%clk 0:00:02]} 54. Bf5# {[%clk 0:00:17]} 1-0


[Site "https://www.chess.com"]

[Event "Titled Tuesday Blitz May 10 Early 2022"]
[White "Namitbir Singh Walia"]
[Black "Padmini, Rout"]
[WhiteFideId "35071068"]
[BlackFideId "5029295"]
[WhiteElo "1565"]
[BlackElo "2181"]
[Result "0-1"]
[Round "02"]
[TimeControl "180+1"]
[Date "2022.05.11"]
[WhiteClock "0:00:02"]
[BlackClock "0:00:18"]

1. e4 {[%clk 0:03:00]}  c5 {[%clk 0:02:59]} 2. Nf3 {[%clk 0:03:00]}  Nc6 {[%clk 0:02:59]} 3. d4 {[%clk 0:03:00]}  cxd4 {[%clk 0:02:59]} 4. Nxd4 {[%clk 0:03:01]}  Nf6 {[%clk 0:03:00]} 5. Nc3 {[%clk 0:02:59]}  e5 {[%clk 0:03:00]} 6. Ndb5 {[%clk 0:02:59]}  d6 {[%clk 0:03:00]} 7. Bg5 {[%clk 0:02:55]}  a6 {[%clk 0:03:00]} 8. Na3 {[%clk 0:02:53]}  b5 {[%clk 0:03:00]} 9. Nd5 {[%clk 0:02:53]}  Be7 {[%clk 0:03:01]} 10. Bxf6 {[%clk 0:02:52]}  Bxf6 {[%clk 0:03:02]} 11. c3 {[%clk 0:02:53]}  O-O {[%clk 0:03:01]} 12. Nc2 {[%clk 0:02:51]}  Rb8 {[%clk 0:03:01]} 13. a4 {[%clk 0:02:10]}  bxa4 {[%clk 0:02:59]} 14. Ncb4 {[%clk 0:02:11]}  Nxb4 {[%clk 0:02:56]} 15. Nxb4 {[%clk 0:02:12]}  Bb7 {[%clk 0:02:42]} 16. Qxa4 {[%clk 0:01:44]}  Qb6 {[%clk 0:02:10]} 17. Bd3 {[%clk 0:01:18]}  Ra8 {[%clk 0:01:19]} 18. O-O {[%clk 0:00:53]}  a5 {[%clk 0:01:19]} 19. Nc2 {[%clk 0:00:53]}  Qxb2 {[%clk 0:00:43]} 20. Ra3 {[%clk 0:00:25]}  Qb6 {[%clk 0:00:39]} 21. Rb3 {[%clk 0:00:24]}  Qc7 {[%clk 0:00:38]} 22. Rfb1 {[%clk 0:00:24]}  Bc6 {[%clk 0:00:38]} 23. Qa3 {[%clk 0:00:16]}  a4 {[%clk 0:00:37]} 24. Rb4 {[%clk 0:00:14]}  g6 {[%clk 0:00:34]} 25. Ne3 {[%clk 0:00:13]}  Rfb8 {[%clk 0:00:33]} 26. Nc4 {[%clk 0:00:10]}  Be7 {[%clk 0:00:32]} 27. Rxb8+ {[%clk 0:00:09]}  Rxb8 {[%clk 0:00:33]} 28. Rb4 {[%clk 0:00:07]}  Rxb4 {[%clk 0:00:30]} 29. cxb4 {[%clk 0:00:06]}  Bxe4 {[%clk 0:00:30]} 30. Bxe4 {[%clk 0:00:04]}  Qxc4 {[%clk 0:00:30]} 31. Bd3 {[%clk 0:00:05]}  Qd4 {[%clk 0:00:26]} 32. h3 {[%clk 0:00:04]}  d5 {[%clk 0:00:23]} 33. Bb5 {[%clk 0:00:04]}  e4 {[%clk 0:00:19]} 34. Qxa4 {[%clk 0:00:03]}  Bxb4 {[%clk 0:00:19]} 35. Qa8+ {[%clk 0:00:03]}  Kg7 {[%clk 0:00:19]} 36. Qb7 {[%clk 0:00:03]}  Qd1+ {[%clk 0:00:18]} 37. Kh2 {[%clk 0:00:02]}  Bd6+ {[%clk 0:00:18]} 38. g3 {[%clk 0:00:02]}  Qd2 {[%clk 0:00:18]} 39. Kg2 {[%clk 0:00:02]}  e3 {[%clk 0:00:18]} 0-1


[Site "https://www.chess.com"]

[Event "Titled Tuesday Blitz May 10 Early 2022"]
[White "Nguyen, Hong Anh"]
[Black "Dorokhin, Mykhailo"]
[WhiteFideId "12406732"]
[BlackFideId "14114178"]
[WhiteElo "2016"]
[BlackElo "2280"]
[Result "0-1"]
[Round "02"]
[TimeControl "180+1"]
[Date "2022.05.11"]
[WhiteClock "0:00:11"]
[BlackClock "0:00:54"]

1. d4 {[%clk 0:02:59]}  d5 {[%clk 0:02:59]} 2. c4 {[%clk 0:02:55]}  e6 {[%clk 0:02:59]} 3. Nf3 {[%clk 0:02:55]}  Nf6 {[%clk 0:02:59]} 4. g3 {[%clk 0:02:55]}  Ne4 {[%clk 0:02:55]} 5. Bg2 {[%clk 0:02:54]}  f5 {[%clk 0:02:55]} 6. O-O {[%clk 0:02:54]}  c6 {[%clk 0:02:55]} 7. Nc3 {[%clk 0:02:54]}  Be7 {[%clk 0:02:55]} 8. Bf4 {[%clk 0:02:51]}  O-O {[%clk 0:02:55]} 9. Rc1 {[%clk 0:02:50]}  Bd7 {[%clk 0:02:55]} 10. Qb3 {[%clk 0:02:46]}  Qb6 {[%clk 0:02:53]} 11. Qc2 {[%clk 0:02:46]}  Be8 {[%clk 0:02:52]} 12. cxd5 {[%clk 0:02:34]}  exd5 {[%clk 0:02:50]} 13. Ne5 {[%clk 0:02:16]}  Nd7 {[%clk 0:02:47]} 14. Rfd1 {[%clk 0:02:02]}  g5 {[%clk 0:02:42]} 15. Nxd7 {[%clk 0:01:58]}  Bxd7 {[%clk 0:02:42]} 16. Be5 {[%clk 0:01:58]}  Rae8 {[%clk 0:02:34]} 17. a3 {[%clk 0:01:50]}  Bf6 {[%clk 0:02:30]} 18. Nxe4 {[%clk 0:01:37]}  fxe4 {[%clk 0:02:22]} 19. Bd6 {[%clk 0:01:31]}  Bxd4 {[%clk 0:02:09]} 20. e3 {[%clk 0:01:30]}  Rxf2 {[%clk 0:02:06]} 21. Rxd4 {[%clk 0:01:05]}  Rxc2 {[%clk 0:02:05]} 22. Rxc2 {[%clk 0:01:06]}  Bg4 {[%clk 0:01:58]} 23. Rf2 {[%clk 0:01:00]}  Qb3 {[%clk 0:01:55]} 24. Rb4 {[%clk 0:00:50]}  Qd1+ {[%clk 0:01:50]} 25. Bf1 {[%clk 0:00:50]}  b6 {[%clk 0:01:39]} 26. Rd4 {[%clk 0:00:26]}  Qe1 {[%clk 0:01:26]} 27. b4 {[%clk 0:00:19]}  Re6 {[%clk 0:01:24]} 28. Bb8 {[%clk 0:00:17]}  Qxe3 {[%clk 0:01:23]} 29. Rd2 {[%clk 0:00:17]}  d4 {[%clk 0:01:17]} 30. b5 {[%clk 0:00:16]}  d3 {[%clk 0:01:14]} 31. bxc6 {[%clk 0:00:14]}  Rxc6 {[%clk 0:01:14]} 32. h3 {[%clk 0:00:13]}  Bf3 {[%clk 0:01:03]} 33. Kh2 {[%clk 0:00:12]}  Rc1 {[%clk 0:01:00]} 34. Kg1 {[%clk 0:00:11]}  Qc5 {[%clk 0:00:54]} 0-1


[Site "https://www.chess.com"]

[Event "Titled Tuesday Blitz May 10 Early 2022"]
[White "Nguyen Hong Nhung"]
[Black "Przybylski, Wojciech"]
[WhiteFideId "12412201"]
[BlackFideId "1117599"]
[WhiteElo "1758"]
[BlackElo "2133"]
[Result "0-1"]
[Round "02"]
[TimeControl "180+1"]
[Date "2022.05.11"]
[WhiteClock "0:00:11"]
[BlackClock "0:00:07"]

1. e4 {[%clk 0:03:00]}  c5 {[%clk 0:02:59]} 2. Nc3 {[%clk 0:02:59]}  d6 {[%clk 0:02:59]} 3. f4 {[%clk 0:02:59]}  f5 {[%clk 0:02:56]} 4. Bb5+ {[%clk 0:02:43]}  Nc6 {[%clk 0:02:54]} 5. d3 {[%clk 0:02:42]}  a6 {[%clk 0:02:50]} 6. Bc4 {[%clk 0:02:39]}  Nf6 {[%clk 0:02:46]} 7. a4 {[%clk 0:02:35]}  fxe4 {[%clk 0:02:39]} 8. dxe4 {[%clk 0:02:35]}  Bg4 {[%clk 0:02:35]} 9. Nge2 {[%clk 0:02:28]}  Nd4 {[%clk 0:02:19]} 10. Be3 {[%clk 0:02:26]}  b5 {[%clk 0:02:10]} 11. axb5 {[%clk 0:02:17]}  axb5 {[%clk 0:02:10]} 12. Rxa8 {[%clk 0:02:00]}  Qxa8 {[%clk 0:02:10]} 13. Nxb5 {[%clk 0:01:53]}  Qxe4 {[%clk 0:01:54]} 14. Bxd4 {[%clk 0:01:47]}  cxd4 {[%clk 0:01:43]} 15. Nxd4 {[%clk 0:01:39]}  Qxg2 {[%clk 0:01:27]} 16. Rg1 {[%clk 0:01:27]}  Qxg1+ {[%clk 0:01:27]} 17. Nxg1 {[%clk 0:01:26]}  Bxd1 {[%clk 0:01:27]} 18. Kxd1 {[%clk 0:01:26]}  d5 {[%clk 0:01:11]} 19. Bb5+ {[%clk 0:01:23]}  Kf7 {[%clk 0:01:11]} 20. Ngf3 {[%clk 0:01:22]}  e6 {[%clk 0:00:40]} 21. Ng5+ {[%clk 0:01:13]}  Kg6 {[%clk 0:00:30]} 22. Bd3+ {[%clk 0:01:11]}  Ne4 {[%clk 0:00:27]} 23. Ndxe6 {[%clk 0:01:02]}  Bd6 {[%clk 0:00:22]} 24. Nxe4 {[%clk 0:00:49]}  dxe4 {[%clk 0:00:22]} 25. Bxe4+ {[%clk 0:00:50]}  Kf6 {[%clk 0:00:22]} 26. f5 {[%clk 0:00:49]}  g6 {[%clk 0:00:20]} 27. Nd4 {[%clk 0:00:41]}  Be5 {[%clk 0:00:18]} 28. Nf3 {[%clk 0:00:36]}  gxf5 {[%clk 0:00:18]} 29. Bd3 {[%clk 0:00:34]}  Bxb2 {[%clk 0:00:18]} 30. Ke2 {[%clk 0:00:35]}  Re8+ {[%clk 0:00:17]} 31. Kf2 {[%clk 0:00:35]}  Bc3 {[%clk 0:00:16]} 32. Kg3 {[%clk 0:00:33]}  Rg8+ {[%clk 0:00:13]} 33. Kf2 {[%clk 0:00:31]}  Rg4 {[%clk 0:00:12]} 34. h3 {[%clk 0:00:28]}  Ra4 {[%clk 0:00:12]} 35. Kg3 {[%clk 0:00:27]}  h6 {[%clk 0:00:11]} 36. Ng1 {[%clk 0:00:20]}  Be5+ {[%clk 0:00:09]} 37. Kf3 {[%clk 0:00:18]}  Rf4+ {[%clk 0:00:08]} 38. Kg2 {[%clk 0:00:19]}  Rb4 {[%clk 0:00:05]} 39. Nf3 {[%clk 0:00:17]}  Ra4 {[%clk 0:00:03]} 40. c4 {[%clk 0:00:15]}  Bd6 {[%clk 0:00:03]} 41. Nd4 {[%clk 0:00:13]}  Ra2+ {[%clk 0:00:03]} 42. Kf3 {[%clk 0:00:13]}  f4 {[%clk 0:00:02]} 43. Be4 {[%clk 0:00:08]}  Ra3+ {[%clk 0:00:02]} 44. Kg4 {[%clk 0:00:07]}  Rg3+ {[%clk 0:00:02]} 45. Kh4 {[%clk 0:00:07]}  Be7 {[%clk 0:00:02]} 46. Kh5 {[%clk 0:00:07]}  Ke5 {[%clk 0:00:02]} 47. Nf5 {[%clk 0:00:05]}  Rxh3+ {[%clk 0:00:02]} 48. Kg4 {[%clk 0:00:06]}  Rh2 {[%clk 0:00:01]} 49. Nxe7 {[%clk 0:00:06]}  Re2 {[%clk 0:00:01]} 50. Bf3 {[%clk 0:00:05]}  Re1 {[%clk 0:00:01]} 51. Ng6+ {[%clk 0:00:05]}  Kd4 {[%clk 0:00:01]} 52. Nxf4 {[%clk 0:00:05]}  Kxc4 {[%clk 0:00:01]} 53. Ng2 {[%clk 0:00:05]}  Rg1 {[%clk 0:00:01]} 54. Kh3 {[%clk 0:00:05]}  Rf1 {[%clk 0:00:02]} 55. Bg4 {[%clk 0:00:05]}  Kd4 {[%clk 0:00:02]} 56. Kh4 {[%clk 0:00:06]}  Rh1+ {[%clk 0:00:02]} 57. Kg3 {[%clk 0:00:06]}  Ke4 {[%clk 0:00:03]} 58. Nh4 {[%clk 0:00:07]}  Ke5 {[%clk 0:00:03]} 59. Nf3+ {[%clk 0:00:07]}  Kf6 {[%clk 0:00:03]} 60. Bh3 {[%clk 0:00:08]}  h5 {[%clk 0:00:03]} 61. Bg2 {[%clk 0:00:09]}  Rd1 {[%clk 0:00:03]} 62. Kh4 {[%clk 0:00:08]}  Kg6 {[%clk 0:00:03]} 63. Ne5+ {[%clk 0:00:08]}  Kh6 {[%clk 0:00:03]} 64. Bf3 {[%clk 0:00:08]}  Rd4+ {[%clk 0:00:03]} 65. Kg3 {[%clk 0:00:08]}  Ra4 {[%clk 0:00:04]} 66. Nd3 {[%clk 0:00:08]}  Kg5 {[%clk 0:00:04]} 67. Nf4 {[%clk 0:00:08]}  h4+ {[%clk 0:00:04]} 68. Kh3 {[%clk 0:00:08]}  Rxf4 {[%clk 0:00:05]} 69. Bg2 {[%clk 0:00:09]}  Rf6 {[%clk 0:00:06]} 70. Kh2 {[%clk 0:00:09]}  Rb6 {[%clk 0:00:06]} 71. Kh3 {[%clk 0:00:09]}  Rb3+ {[%clk 0:00:06]} 72. Kh2 {[%clk 0:00:10]}  Kg4 {[%clk 0:00:06]} 73. Bf1 {[%clk 0:00:10]}  h3 {[%clk 0:00:06]} 74. Be2+ {[%clk 0:00:10]}  Kh4 {[%clk 0:00:06]} 75. Bf1 {[%clk 0:00:11]}  Rb2+ {[%clk 0:00:06]} 76. Kh1 {[%clk 0:00:11]}  Kg3 {[%clk 0:00:06]} 77. Kg1 {[%clk 0:00:11]}  Rb1 {[%clk 0:00:06]} 78. Kh1 {[%clk 0:00:11]}  Rxf1# {[%clk 0:00:07]} 0-1


[Site "https://www.chess.com"]

[Event "Titled Tuesday Blitz May 10 Early 2022"]
[White "Niemann, Hans Moke"]
[Black "Samant Aditya S"]
[WhiteFideId "2093596"]
[BlackFideId "35080580"]
[WhiteElo "2632"]
[BlackElo "1916"]
[Result "1-0"]
[Round "02"]
[TimeControl "180+1"]
[Date "2022.05.10"]
[WhiteClock "0:01:08"]
[BlackClock "0:00:03"]

1. d4 {[%clk 0:02:58]}  Nf6 {[%clk 0:02:59]} 2. Nc3 {[%clk 0:02:59]}  d5 {[%clk 0:02:58]} 3. Bf4 {[%clk 0:02:56]}  c5 {[%clk 0:02:58]} 4. e4 {[%clk 0:02:53]}  Nxe4 {[%clk 0:02:58]} 5. Nxe4 {[%clk 0:02:51]}  dxe4 {[%clk 0:02:59]} 6. dxc5 {[%clk 0:02:52]}  Qa5+ {[%clk 0:02:59]} 7. c3 {[%clk 0:02:52]}  Qxc5 {[%clk 0:03:00]} 8. Qa4+ {[%clk 0:02:53]}  Nc6 {[%clk 0:02:56]} 9. Qxe4 {[%clk 0:02:50]}  Bf5 {[%clk 0:02:55]} 10. Qa4 {[%clk 0:02:49]}  e6 {[%clk 0:02:43]} 11. Be3 {[%clk 0:02:47]}  Qa5 {[%clk 0:02:21]} 12. Qxa5 {[%clk 0:02:43]}  Nxa5 {[%clk 0:02:22]} 13. Bb5+ {[%clk 0:02:42]}  Nc6 {[%clk 0:02:22]} 14. Nf3 {[%clk 0:02:43]}  Be4 {[%clk 0:02:07]} 15. O-O-O {[%clk 0:02:37]}  a6 {[%clk 0:01:59]} 16. Ba4 {[%clk 0:02:29]}  b5 {[%clk 0:01:53]} 17. Bc2 {[%clk 0:02:24]}  Bxc2 {[%clk 0:01:48]} 18. Kxc2 {[%clk 0:02:22]}  Rd8 {[%clk 0:01:35]} 19. Bb6 {[%clk 0:02:15]}  Rxd1 {[%clk 0:01:29]} 20. Rxd1 {[%clk 0:02:03]}  Be7 {[%clk 0:01:17]} 21. Nd4 {[%clk 0:02:00]}  Ne5 {[%clk 0:00:51]} 22. Bc7 {[%clk 0:01:48]}  Ng4 {[%clk 0:00:43]} 23. Bg3 {[%clk 0:01:41]}  Nf6 {[%clk 0:00:41]} 24. Nc6 {[%clk 0:01:39]}  Nd5 {[%clk 0:00:39]} 25. Nb8 {[%clk 0:01:38]}  O-O {[%clk 0:00:22]} 26. Nxa6 {[%clk 0:01:34]}  Ra8 {[%clk 0:00:23]} 27. Nc7 {[%clk 0:01:34]}  Nxc7 {[%clk 0:00:23]} 28. Bxc7 {[%clk 0:01:35]}  Rxa2 {[%clk 0:00:24]} 29. Bd8 {[%clk 0:01:30]}  Kf8 {[%clk 0:00:23]} 30. Rd7 {[%clk 0:01:28]}  Bc5 {[%clk 0:00:20]} 31. Bh4 {[%clk 0:01:25]}  f6 {[%clk 0:00:18]} 32. Rb7 {[%clk 0:01:25]}  b4 {[%clk 0:00:13]} 33. Kb3 {[%clk 0:01:24]}  Ra1 {[%clk 0:00:13]} 34. cxb4 {[%clk 0:01:24]}  Bd4 {[%clk 0:00:13]} 35. b5 {[%clk 0:01:16]}  Rb1 {[%clk 0:00:12]} 36. Kc4 {[%clk 0:01:16]}  e5 {[%clk 0:00:11]} 37. Kd5 {[%clk 0:01:16]}  Rc1 {[%clk 0:00:08]} 38. Ke6 {[%clk 0:01:16]}  Rc8 {[%clk 0:00:06]} 39. b3 {[%clk 0:01:17]}  Re8+ {[%clk 0:00:06]} 40. Kf5 {[%clk 0:01:17]}  Rd8 {[%clk 0:00:05]} 41. f3 {[%clk 0:01:16]}  Rd6 {[%clk 0:00:05]} 42. Be1 {[%clk 0:01:16]}  g6+ {[%clk 0:00:05]} 43. Kg4 {[%clk 0:01:14]}  f5+ {[%clk 0:00:05]} 44. Kh3 {[%clk 0:01:14]}  Rb6 {[%clk 0:00:05]} 45. Bb4+ {[%clk 0:01:14]}  Kg8 {[%clk 0:00:05]} 46. Rxb6 {[%clk 0:01:14]}  Bxb6 {[%clk 0:00:06]} 47. Bd6 {[%clk 0:01:14]}  e4 {[%clk 0:00:06]} 48. fxe4 {[%clk 0:01:13]}  fxe4 {[%clk 0:00:06]} 49. Kg3 {[%clk 0:01:13]}  Kf7 {[%clk 0:00:06]} 50. b4 {[%clk 0:01:14]}  Ke6 {[%clk 0:00:06]} 51. Bc5 {[%clk 0:01:14]}  Bc7+ {[%clk 0:00:05]} 52. Kf2 {[%clk 0:01:15]}  Kd5 {[%clk 0:00:05]} 53. g3 {[%clk 0:01:15]}  Be5 {[%clk 0:00:03]} 54. Ke3 {[%clk 0:01:16]}  g5 {[%clk 0:00:03]} 55. b6 {[%clk 0:01:17]}  h5 {[%clk 0:00:02]} 56. b7 {[%clk 0:01:17]}  Bb8 {[%clk 0:00:03]} 57. Be7 {[%clk 0:01:15]}  h4 {[%clk 0:00:04]} 58. gxh4 {[%clk 0:01:14]}  gxh4 {[%clk 0:00:05]} 59. h3 {[%clk 0:01:14]}  Ba7+ {[%clk 0:00:04]} 60. Bc5 {[%clk 0:01:11]}  Bb8 {[%clk 0:00:04]} 61. Bd4 {[%clk 0:01:11]}  Bc7 {[%clk 0:00:03]} 62. Ba7 {[%clk 0:01:11]}  Kc4 {[%clk 0:00:02]} 63. Kxe4 {[%clk 0:01:06]}  Kxb4 {[%clk 0:00:02]} 64. b8=Q+ {[%clk 0:01:07]}  Bxb8 {[%clk 0:00:02]} 65. Bxb8 {[%clk 0:01:08]}  Kc5 {[%clk 0:00:03]} 66. Ke5 {[%clk 0:01:08]} 1-0


[Site "https://www.chess.com"]

[Event "Titled Tuesday Blitz May 10 Early 2022"]
[White "Ohanyan, Emin"]
[Black "Munoz, Francisco Javier"]
[WhiteFideId "13312022"]
[BlackFideId "128368"]
[WhiteElo "1927"]
[BlackElo "2383"]
[Result "1-0"]
[Round "02"]
[TimeControl "180+1"]
[Date "2022.05.11"]
[WhiteClock "0:00:37"]
[BlackClock "0:00:04"]

1. e4 {[%clk 0:02:46]}  c5 {[%clk 0:02:57]} 2. Nf3 {[%clk 0:02:46]}  Nf6 {[%clk 0:02:56]} 3. Nc3 {[%clk 0:02:38]}  d5 {[%clk 0:02:55]} 4. exd5 {[%clk 0:02:33]}  Nxd5 {[%clk 0:02:54]} 5. Bc4 {[%clk 0:02:25]}  Nxc3 {[%clk 0:02:53]} 6. bxc3 {[%clk 0:02:24]}  Nc6 {[%clk 0:02:51]} 7. d4 {[%clk 0:02:23]}  e6 {[%clk 0:02:46]} 8. O-O {[%clk 0:02:22]}  Be7 {[%clk 0:02:45]} 9. h3 {[%clk 0:02:21]}  O-O {[%clk 0:02:43]} 10. Re1 {[%clk 0:02:22]}  Bf6 {[%clk 0:02:37]} 11. Be3 {[%clk 0:02:19]}  cxd4 {[%clk 0:02:30]} 12. cxd4 {[%clk 0:02:00]}  b6 {[%clk 0:02:29]} 13. d5 {[%clk 0:01:53]}  Na5 {[%clk 0:02:23]} 14. Bd3 {[%clk 0:01:53]}  exd5 {[%clk 0:01:57]} 15. Bd4 {[%clk 0:01:47]}  Be6 {[%clk 0:01:38]} 16. Ne5 {[%clk 0:01:43]}  Rc8 {[%clk 0:01:31]} 17. Qh5 {[%clk 0:01:37]}  h6 {[%clk 0:01:07]} 18. Re3 {[%clk 0:01:22]}  Nc4 {[%clk 0:01:04]} 19. Bxc4 {[%clk 0:01:17]}  dxc4 {[%clk 0:00:40]} 20. c3 {[%clk 0:01:17]}  Bg5 {[%clk 0:00:12]} 21. Rg3 {[%clk 0:01:17]}  f6 {[%clk 0:00:05]} 22. Ng6 {[%clk 0:01:14]}  Bf7 {[%clk 0:00:05]} 23. h4 {[%clk 0:01:09]}  Bf4 {[%clk 0:00:03]} 24. Rg4 {[%clk 0:01:07]}  Bb8 {[%clk 0:00:01]} 25. Re1 {[%clk 0:01:04]}  Qc7 {[%clk 0:00:02]} 26. Ne7+ {[%clk 0:01:04]}  Kh8 {[%clk 0:00:02]} 27. Qxh6+ {[%clk 0:00:59]}  gxh6 {[%clk 0:00:02]} 28. Bxf6+ {[%clk 0:00:59]}  Kh7 {[%clk 0:00:03]} 29. Rg7+ {[%clk 0:01:00]}  Kh8 {[%clk 0:00:04]} 30. Rxf7# {[%clk 0:00:37]} 1-0


[Site "https://www.chess.com"]